bitfinex/quotes_SOLUSD_20241117
["timestamp","ask_amount","ask_price","bid_price","bid_amount"]
[1731826462165,0.25063,239.4,239.34,0.12549]
[1731826462479,0.25063,239.4,239.39,23.8252347]
[1731826463184,0.25063,239.4,239.39,43.8252347]
[1731826463478,0.25063,239.4,239.35,0.1]
[1731826463681,0.25063,239.4,239.39,23.8252347]
[1731826464210,0.25063,239.4,239.39,24.0762147]
[1731826465056,0.12523,239.4,239.39,24.0762147]
[1731826465481,0.04737756,239.52,239.4,0.22549]
[1731826465657,0.04737756,239.52,239.48,23.8252347]
[1731826465858,0.04737756,239.52,239.49,0.12549]
[1731826466072,0.04737756,239.52,239.5,28.0005347]
[1731826466482,0.04737756,239.52,239.51,0.12549]
[1731826467063,0.04737756,239.52,239.51,0.25098]
[1731826470663,0.0426398,239.54,239.53,0.25098]
[1731826470863,0.1279194,239.54,239.53,24.0762147]
[1731826471275,0.0426398,239.58,239.53,24.0762147]
[1731826471276,0.79,239.6,239.56,0.1]
[1731826471501,0.79,239.6,239.59,71.8783334]
[1731826471791,0.04737756,239.76,239.67,14.6034]
[1731826471988,0.04737756,239.76,239.7,0.12549]
[1731826472196,28.04271226,239.8,239.69,23.8252347]
[1731826472198,0.07599,239.84,239.72,23.8252347]
[1731826472368,23.8252347,239.78,239.62,12.7541]
[1731826472685,23.8252347,239.75,239.63,23.8252347]
[1731826472990,23.8252347,239.77,239.65,23.8252347]
[1731826473192,23.8252347,239.79,239.67,23.8252347]
[1731826473490,23.9167236,239.81,239.69,23.8252347]
[1731826473690,0.0914889,239.81,239.71,23.8252347]
[1731826473865,28.0867236,239.81,239.7,10.4297]
[1731826474279,23.9167236,239.81,239.71,0.25098]
[1731826474481,23.9167236,239.81,239.71,0.12549]
[1731826474682,23.8252347,239.77,239.67,0.12549]
[1731826475075,4.2613889,239.81,239.67,0.12549]
[1731826475268,23.8252347,239.78,239.67,0.12549]
[1731826475471,4.2613889,239.81,239.67,0.12549]
[1731826475684,23.8252347,239.77,239.67,0.12549]
[1731826475886,23.8252347,239.75,239.63,27.9981347]
[1731826476401,23.8252347,239.75,239.63,23.8252347]
[1731826477187,23.8252347,239.73,239.63,23.8252347]
[1731826477391,27.9965347,239.73,239.61,38.4320347]
[1731826477590,23.8252347,239.73,239.61,38.4320347]
[1731826478173,23.8252347,239.73,239.61,14.6068]
[1731826478378,23.8252347,239.73,239.61,38.4320347]
[1731826478691,23.8252347,239.75,239.63,23.8252347]
[1731826478892,23.8252347,239.75,239.64,0.25098]
[1731826479469,23.8252347,239.75,239.66,0.12549]
[1731826480386,0.1914889,239.81,239.65,10.4318]
[1731826480578,23.8252347,239.74,239.65,10.4318]
[1731826480782,4.1701,239.8,239.65,10.4318]
[1731826480995,4.1701,239.8,239.71,0.12549]
[1731826481200,23.8252347,239.76,239.65,14.6045]
[1731826481691,23.8252347,239.71,239.65,10.4318]
[1731826481991,23.8252347,239.68,239.59,10.4342]
[1731826482177,32.0414,239.75,239.59,10.4342]
[1731826482376,31.9414,239.75,239.59,10.4342]
[1731826482684,23.776884,239.74,239.59,10.4342]
[1731826482881,23.776884,239.62,239.54,12.7541]
[1731826483089,0.1,239.72,239.54,12.7541]
[1731826483399,27.949384,239.66,239.54,10.4364]
[1731826483601,27.949384,239.66,239.54,34.2616347]
[1731826483602,4.1725,239.66,239.54,34.2616347]
[1731826483899,23.8252347,239.67,239.54,34.2616347]
[1731826484091,27.9977347,239.67,239.54,34.2616347]
[1731826484389,23.8252347,239.65,239.54,34.2616347]
[1731826484980,23.776884,239.64,239.54,34.2616347]
[1731826485196,23.776884,239.64,239.54,10.4364]
[1731826485395,23.776884,239.62,239.52,23.8252347]
[1731826485597,4.1725,239.66,239.53,4.1748]
[1731826485782,4.1725,239.66,239.54,23.8252347]
[1731826485783,23.776884,239.65,239.54,23.8252347]
[1731826486196,23.776884,239.69,239.57,23.8252347]
[1731826487080,23.8252347,239.7,239.58,0.12549]
[1731826487285,23.8252347,239.7,239.59,23.8252347]
[1731826487491,23.8252347,239.7,239.59,38.4333347]
[1731826488205,23.9167236,239.7,239.59,38.4333347]
[1731826488799,23.9167236,239.7,239.61,23.8252347]
[1731826488800,0.0914889,239.7,239.61,23.8252347]
[1731826489101,0.0914889,239.7,239.63,23.8252347]
[1731826489396,0.0914889,239.7,239.65,14.6045]
[1731826491297,0.0914889,239.7,239.66,0.12549]
[1731826492390,0.0914889,239.7,239.67,14.6034]
[1731826492601,0.0914889,239.7,239.68,0.12549]
[1731826492784,0.0914889,239.7,239.67,14.6034]
[1731826494100,0.0914889,239.7,239.68,0.12549]
[1731826494687,0.0914889,239.7,239.68,0.25098]
[1731826494906,0.0914889,239.7,239.69,23.8252347]
[1731826495209,0.0914889,239.7,239.69,23.9507247]
[1731826495409,0.0914889,239.7,239.69,24.0762147]
[1731826495704,0.0914889,239.7,239.69,28.2482147]
[1731826496085,0.04000007,239.8,239.7,0.25098]
[1731826496280,0.04000007,239.8,239.79,23.9507247]
[1731826496884,0.04000007,239.8,239.77,23.8252347]
[1731826497296,0.04000007,239.8,239.79,23.8252347]
[1731826497608,0.04000007,239.8,239.77,23.8252347]
[1731826497986,0.04000007,239.8,239.78,14.5966]
[1731826498300,0.04000007,239.8,239.79,23.9507247]
[1731826498695,0.04000007,239.8,239.79,23.8252347]
[1731826498998,0.04000007,239.8,239.78,14.5966]
[1731826500088,0.04000007,239.8,239.79,23.8252347]
[1731826500289,0.04000007,239.8,239.78,14.5966]
[1731826501097,0.04000007,239.8,239.74,23.8252347]
[1731826501290,0.04000007,239.8,239.72,10.4286]
[1731826501485,23.81688407,239.8,239.72,10.4286]
[1731826501884,23.31688407,239.8,239.72,10.4286]
[1731826502084,27.48698407,239.8,239.72,10.4286]
[1731826502316,23.8252347,239.75,239.67,10.4308]
[1731826503206,23.8252347,239.77,239.67,10.4308]
[1731826503409,23.8252347,239.7,239.62,10.433]
[1731826503619,23.8252347,239.68,239.58,27.9991347]
[1731826503789,23.8252347,239.68,239.58,10.4349]
[1731826504108,23.776884,239.67,239.58,10.4349]
[1731826504317,23.8252347,239.68,239.58,34.2601347]
[1731826504500,23.776884,239.67,239.58,34.2601347]
[1731826504696,23.8252347,239.66,239.58,10.4349]
[1731826504901,23.776884,239.65,239.58,10.4349]
[1731826505423,23.776884,239.65,239.56,23.8252347]
[1731826505593,0.1,239.5,239.39,23.8252347]
[1731826505792,23.8252347,239.47,239.36,23.8252347]
[1731826506092,23.776884,239.44,239.36,23.8252347]
[1731826506298,0.1,239.43,239.34,23.8252347]
[1731826506509,23.9252347,239.43,239.34,23.8252347]
[1731826506815,23.9252347,239.43,239.16,0.1]
[1731826506816,23.776884,239.4,239.31,23.8252347]
[1731826507017,51.7792187,239.4,239.29,23.8252347]
[1731826507326,51.7792187,239.4,239.31,23.8252347]
[1731826507327,27.953984,239.4,239.31,23.8252347]
[1731826507492,23.776884,239.41,239.33,23.8252347]
[1731826507693,23.8252347,239.35,239.19,10.4516]
[1731826507889,0.1,239.42,239.33,23.8252347]
[1731826508099,23.776884,239.4,239.33,23.8252347]
[1731826508285,23.776884,239.4,239.2,16.98320718]
[1731826508286,47.6021187,239.4,239.2,16.98320718]
[1731826508909,47.6021187,239.4,239.29,23.8252347]
[1731826509236,23.776884,239.41,239.21,0.1]
[1731826509416,23.776884,239.39,239.21,0.1]
[1731826509595,23.776884,239.39,239.2,35.6351]
[1731826509792,23.776884,239.39,239.3,23.8252347]
[1731826510118,66.893984,239.31,239.18,23.8252347]
[1731826510425,66.893984,239.31,239.08,0.1]
[1731826510426,66.893984,239.31,239.11,0.1]
[1731826510595,23.8252347,239.28,239.17,23.8252347]
[1731826510910,23.8252347,239.28,239.11,10.4553]
[1731826511116,23.776884,239.24,239.13,23.8252347]
[1731826511333,4.179,239.29,239.11,10.4553]
[1731826511334,0.1,239.35,239.16,23.8252347]
[1731826511616,23.776884,239.3,239.11,10.4553]
[1731826511820,23.776884,239.27,239.17,23.8252347]
[1731826512316,23.776884,239.27,239.11,10.4553]
[1731826512515,23.776884,239.27,239.16,23.8252347]
[1731826512719,23.776884,239.26,239.16,23.8252347]
[1731826513322,23.8252347,239.25,239.14,23.8252347]
[1731826513499,23.776884,239.22,239.12,23.8252347]
[1731826513694,23.8252347,239.19,239.02,0.72605518]
[1731826513903,23.776884,239.16,239.05,23.8252347]
[1731826514105,0.1,239.2,239.03,14.6421]
[1731826514106,23.776884,239.14,239.04,23.8252347]
[1731826514812,23.776884,239.04,238.95,14.6471]
[1731826515010,56.8278347,239.09,238.98,23.8252347]
[1731826515219,23.776884,239.08,238.98,23.8252347]
[1731826515891,23.8252347,239.07,238.96,23.8252347]
[1731826516094,23.776884,239.06,238.96,23.8252347]
[1731826516391,23.8252347,239.03,238.95,10.4622]
[1731826516592,23.776884,239.04,238.95,10.4622]
[1731826517421,56.8278347,239.09,238.98,23.8252347]
[1731826517711,23.776884,239.08,238.98,23.8252347]
[1731826518111,23.8252347,239.07,238.98,23.8252347]
[1731826518308,23.776884,239.06,238.96,23.8252347]
[1731826518501,33.0026,239.09,239.0,23.8252347]
[1731826518703,28.0069347,239.14,239.03,23.8252347]
[1731826519509,23.8252347,239.12,239.03,23.8252347]
[1731826519707,0.1,239.01,238.92,0.6052623]
[1731826520023,23.8252347,238.95,238.92,0.6052623]
[1731826520529,4.1851,238.94,238.92,0.6052623]
[1731826520703,47.6021187,238.93,238.92,0.6052623]
[1731826521733,47.7021187,238.93,238.92,0.6052623]
[1731826522601,0.1,238.91,238.9,0.04]
[1731826522800,0.1,238.91,238.76,23.8252347]
[1731826522801,0.1,238.88,238.73,38.80255596]
[1731826523024,38.80255596,238.82,238.73,38.80255596]
[1731826523222,23.776884,238.81,238.73,38.80255596]
[1731826523431,38.80255596,238.8,238.72,10.4724]
[1731826523625,23.776884,238.79,238.72,10.4724]
[1731826523807,38.80255596,238.8,238.72,14.6614]
[1731826524006,38.80255596,238.8,238.69,38.80255596]
[1731826524420,23.776884,238.77,238.67,42.99225596]
[1731826524622,38.80255596,238.78,238.67,42.99225596]
[1731826524831,38.80255596,238.78,238.69,38.80255596]
[1731826525016,38.80255596,238.78,238.67,4.1897]
[1731826525017,38.80255596,238.78,238.67,42.99225596]
[1731826525210,38.80255596,238.69,238.6,13.168]
[1731826525423,38.80255596,238.63,238.44,13.168]
[1731826525628,62.57943996,238.63,238.53,38.80255596]
[1731826526421,23.776884,238.64,238.55,42.99445596]
[1731826526624,62.57943996,238.63,238.55,4.1919]
[1731826526819,38.80255596,238.63,238.53,38.80255596]
[1731826527037,62.57943996,238.63,238.53,38.80255596]
[1731826527323,62.57943996,238.63,238.44,13.368]
[1731826527324,62.77943996,238.63,238.45,10.4841]
[1731826527525,62.77943996,238.63,238.45,14.6778]
[1731826527830,23.776884,238.62,238.45,53.48035596]
[1731826528030,38.80255596,238.56,238.45,53.48035596]
[1731826528337,38.80255596,238.58,238.47,38.80255596]
[1731826528712,38.80255596,238.56,238.45,14.6778]
[1731826529125,38.80255596,238.54,238.45,14.6778]
[1731826529328,38.80255596,238.52,238.45,10.4841]
[1731826529542,38.80255596,238.5,238.41,4.1944]
[1731826529720,38.80255596,238.48,238.41,4.1944]
[1731826529919,38.80255596,238.46,238.38,14.682]
[1731826530121,38.80255596,238.4,238.11,0.1]
[1731826530326,38.80255596,238.32,238.27,4.1968]
[1731826530844,62.57943996,238.32,238.23,10.4937]
[1731826531137,62.57943996,238.32,238.03,13.2417]
[1731826531138,101.58199592,238.32,238.16,21.24184387]
[1731826531336,38.80255596,238.32,238.18,38.80255596]
[1731826531640,62.57943996,238.32,238.2,38.80255596]
[1731826531843,62.57943996,238.32,238.18,43.00085596]
[1731826532018,62.57943996,238.32,238.18,4.1983]
[1731826532330,66.77543996,238.32,238.16,49.29945596]
[1731826532647,86.87543996,238.32,238.17,4.1985]
[1731826532935,66.77543996,238.32,238.17,4.1985]
[1731826533134,66.77543996,238.32,238.16,10.4969]
[1731826533339,66.77543996,238.32,238.18,38.80255596]
[1731826533636,66.77543996,238.32,238.2,4.1981]
[1731826533821,62.57943996,238.32,238.22,4.1977]
[1731826534719,38.80255596,238.29,238.22,4.6290359]
[1731826535021,38.80255596,238.29,238.22,0.4313359]
[1731826535225,38.80255596,238.31,238.23,10.494]
[1731826535424,38.80255596,238.31,238.24,0.12549]
[1731826535630,38.80255596,238.33,238.24,0.12549]
[1731826535836,38.80255596,238.35,238.24,38.92804596]
[1731826536139,38.80255596,238.35,238.27,0.25098]
[1731826536334,38.80255596,238.35,238.27,4.44778]
[1731826536638,38.80255596,238.33,238.27,4.32229]
[1731826536815,38.80255596,238.33,238.27,0.12549]
[1731826537422,38.80255596,238.33,238.26,4.197]
[1731826537816,38.80255596,238.33,238.23,10.494]
[1731826538024,38.80255596,238.31,238.24,0.12549]
[1731826538224,38.80255596,238.31,238.23,14.6916]
[1731826538425,23.776884,238.26,238.22,0.4313359]
[1731826538626,23.776884,238.24,238.22,0.4313359]
[1731826538927,38.80255596,238.27,238.22,0.4313359]
[1731826539438,23.776884,238.24,238.22,0.4313359]
[1731826540940,38.80255596,238.23,238.22,0.4313359]
[1731826541140,62.57943996,238.23,238.22,0.4313359]
[1731826541523,38.80255596,238.25,238.22,0.4313359]
[1731826541829,23.776884,238.27,238.22,0.4313359]
[1731826542644,38.80255596,238.26,238.22,0.4313359]
[1731826543038,38.80255596,238.3,238.23,14.94258]
[1731826543223,7.74907492,238.41,238.23,14.94258]
[1731826543224,38.80255596,238.32,238.23,14.94258]
[1731826543419,38.80255596,238.3,238.23,14.94258]
[1731826543823,38.80255596,238.32,238.23,14.94258]
[1731826545140,38.80255596,238.36,238.25,0.25098]
[1731826545343,38.80255596,238.36,238.27,0.12549]
[1731826545519,38.80255596,238.36,238.27,0.25098]
[1731826545722,38.80255596,238.28,238.22,0.4313359]
[1731826545934,38.80255596,238.23,238.22,0.4313359]
[1731826546242,43.00015596,238.23,238.08,4.2001]
[1731826546546,38.80255596,238.18,238.06,38.80255596]
[1731826546841,62.57943996,238.16,238.05,10.5017]
[1731826547253,38.80255596,238.16,238.05,10.5017]
[1731826547433,62.57943996,238.16,238.05,10.5017]
[1731826548142,66.77823996,238.16,238.05,14.7023]
[1731826548319,66.77823996,238.16,238.05,10.5017]
[1731826548643,66.77823996,238.16,237.98,16.788511]
[1731826548831,38.80255596,237.99,237.88,38.80255596]
[1731826549032,38.80255596,238.05,237.92,38.80255596]
[1731826549250,23.776884,238.04,237.92,38.80255596]
[1731826549549,23.776884,238.02,237.9,38.80255596]
[1731826549746,38.80255596,237.99,237.88,38.80255596]
[1731826549950,23.776884,237.98,237.88,38.80255596]
[1731826550241,38.80255596,237.97,237.86,11.0720807]
[1731826550449,23.776884,237.94,237.86,0.5617807]
[1731826550746,23.776884,237.96,237.86,0.5617807]
[1731826550747,23.776884,237.92,237.86,0.5617807]
[1731826551126,38.80255596,237.99,237.87,38.80255596]
[1731826551326,38.80255596,237.97,237.86,15.2760807]
[1731826552128,38.80255596,237.95,237.86,11.0720807]
[1731826552329,23.776884,237.94,237.86,11.0720807]
[1731826552624,38.80255596,237.91,237.86,0.5617807]
[1731826552830,23.776884,237.88,237.86,0.0617807]
[1731826553049,23.776884,237.9,237.86,0.0617807]
[1731826553243,38.80255596,237.91,237.86,0.0617807]
[1731826553452,23.776884,237.9,237.86,0.0617807]
[1731826554033,38.80255596,237.89,237.86,0.0617807]
[1731826554235,23.776884,237.88,237.86,0.0617807]
[1731826554434,0.1,238.0,237.86,0.0617807]
[1731826554435,38.80255596,237.91,237.86,0.0617807]
[1731826554726,23.776884,237.9,237.86,0.0617807]
[1731826555147,0.1,238.07,237.86,0.0617807]
[1731826555332,38.80255596,238.01,237.89,38.80255596]
[1731826555532,38.80255596,238.01,237.91,38.80255596]
[1731826555732,38.80255596,238.01,237.92,0.25098]
[1731826556335,38.80255596,238.01,237.92,4.45388]
[1731826556534,38.80255596,238.01,237.92,0.12549]
[1731826557447,38.80255596,238.01,237.9,0.25098]
[1731826557651,38.80255596,237.97,237.87,38.80255596]
[1731826557950,38.80255596,237.97,237.75,6.54605985]
[1731826557951,0.2,237.79,237.6,8.48284474]
[1731826558164,38.80255596,237.68,237.6,8.48284474]
[1731826558340,38.80255596,237.66,237.58,4.7707807]
[1731826558540,0.12549,237.76,237.58,4.7707807]
[1731826558851,0.1,237.77,237.58,4.7707807]
[1731826558852,38.80255596,237.67,237.58,4.7707807]
[1731826559154,38.80255596,237.69,237.58,54.09603666]
[1731826559558,0.1,237.76,237.62,38.80255596]
[1731826559559,38.80255596,237.73,237.62,38.80255596]
[1731826559860,23.776884,237.72,237.6,38.80255596]
[1731826560343,23.776884,237.7,237.6,38.80255596]
[1731826560539,38.80255596,237.71,237.61,4.2085]
[1731826560762,21.0187,237.89,237.64,38.80255596]
[1731826560763,38.80255596,237.75,237.64,38.80255596]
[1731826560946,23.776884,237.74,237.62,38.80255596]
[1731826561846,23.776884,237.74,237.63,14.97968]
[1731826562243,38.80255596,237.77,237.67,38.80255596]
[1731826562555,38.80255596,237.79,237.7,0.25098]
[1731826562951,38.80255596,237.83,237.73,38.80255596]
[1731826563151,38.80255596,237.85,237.74,0.25098]
[1731826564174,38.80255596,237.85,237.75,4.206]
[1731826564468,38.80255596,237.83,237.76,0.25098]
[1731826564963,38.80255596,237.83,237.75,0.25098]
[1731826565950,38.80255596,237.83,237.77,0.25098]
[1731826566350,38.80255596,237.85,237.77,0.25098]
[1731826566747,77.60511192,237.78,237.6,10.5214]
[1731826566950,38.80255596,237.69,237.6,10.5214]
[1731826567150,38.80255596,237.65,237.6,10.5214]
[1731826567553,38.80255596,237.65,237.58,0.5617807]
[1731826567554,38.80255596,237.63,237.58,0.5617807]
[1731826567947,38.80255596,237.67,237.58,0.5617807]
[1731826568243,38.80255596,237.71,237.61,38.80255596]
[1731826568447,38.80255596,237.71,237.59,38.80255596]
[1731826568653,38.80255596,237.69,237.59,38.80255596]
[1731826568849,38.80255596,237.73,237.61,38.80255596]
[1731826569054,38.80255596,237.68,237.58,0.5617807]
[1731826569362,38.80255596,237.66,237.58,0.5617807]
[1731826569546,38.80255596,237.64,237.58,0.5617807]
[1731826570465,38.80255596,237.77,237.58,0.5617807]
[1731826570466,38.80255596,237.66,237.58,4.7706807]
[1731826570661,38.80255596,237.68,237.58,15.2933807]
[1731826570850,38.80255596,237.66,237.58,15.2933807]
[1731826571363,38.80255596,237.68,237.58,15.2933807]
[1731826571870,38.80255596,237.72,237.61,38.80255596]
[1731826572052,38.80255596,237.7,237.61,14.7299]
[1731826572257,38.80255596,237.74,237.64,0.25098]
[1731826572476,38.80255596,237.74,237.65,38.80255596]
[1731826572674,38.80255596,237.76,237.66,0.25098]
[1731826573045,38.80255596,237.76,237.66,0.35098]
[1731826573342,38.80255596,237.77,237.66,39.05353596]
[1731826573765,38.80255596,237.73,237.63,0.25098]
[1731826573970,38.80255596,237.71,237.62,0.25098]
[1731826574270,38.80255596,237.73,237.64,0.25098]
[1731826574467,38.80255596,237.71,237.64,0.25098]
[1731826575654,38.80255596,237.69,237.62,0.25098]
[1731826575972,38.80255596,237.69,237.62,0.12549]
[1731826577449,38.80255596,237.74,237.65,38.80255596]
[1731826577659,38.80255596,237.8,237.71,0.25098]
[1731826578468,38.80255596,237.84,237.74,38.80255596]
[1731826578669,38.80255596,237.88,237.79,0.12549]
[1731826578848,38.80255596,237.88,237.79,0.25098]
[1731826579053,4.2016,238.0,237.85,0.25098]
[1731826579262,13.362677,238.07,237.89,0.12549]
[1731826579263,38.80255596,237.98,237.89,0.12549]
[1731826579470,13.362677,238.07,237.89,0.25098]
[1731826579471,38.80255596,238.0,237.89,0.25098]
[1731826579670,38.80255596,238.0,237.91,0.25098]
[1731826579872,4.1967,238.28,238.05,0.25098]
[1731826580184,0.1,238.24,238.11,0.12549]
[1731826580350,38.80255596,238.14,238.11,0.12549]
[1731826580549,4.1967,238.28,238.11,0.12549]
[1731826580772,4.1967,238.28,238.09,0.12549]
[1731826580773,4.1967,238.28,238.09,0.25098]
[1731826580973,38.80255596,238.18,238.13,0.12549]
[1731826581150,38.80255596,238.16,238.06,0.25098]
[1731826581469,4.1972,238.25,238.06,0.25098]
[1731826581470,38.80255596,238.14,238.06,0.25098]
[1731826581853,38.80255596,238.14,238.04,0.25098]
[1731826582475,38.80255596,238.12,238.03,0.25098]
[1731826582652,38.80255596,238.1,238.03,0.25098]
[1731826582862,23.776884,238.11,238.03,0.25098]
[1731826583070,38.80255596,238.1,238.02,0.25098]
[1731826583253,38.80255596,238.06,237.97,0.12549]
[1731826583574,23.776884,238.09,237.85,32.9797]
[1731826583575,38.80255596,238.02,237.99,16.788564]
[1731826583756,23.776884,237.99,237.88,38.80255596]
[1731826584082,23.976884,238.09,237.88,38.80255596]
[1731826584083,23.776884,238.03,237.92,38.80255596]
[1731826584380,23.776884,238.01,237.9,38.80255596]
[1731826584584,38.80255596,238.1,237.98,38.80255596]
[1731826584751,23.776884,238.09,237.98,38.80255596]
[1731826584950,23.776884,238.07,237.98,38.80255596]
[1731826585150,38.80255596,238.1,237.98,38.80255596]
[1731826585372,43.00205596,238.12,238.0,38.80255596]
[1731826585572,38.80255596,238.12,238.0,38.80255596]
[1731826585780,38.80255596,238.15,238.05,0.25098]
[1731826585957,38.80255596,238.19,238.09,0.25098]
[1731826586164,38.80255596,238.25,238.15,0.25098]
[1731826586363,38.80255596,238.25,238.17,0.25098]
[1731826586557,38.80255596,238.2,238.09,38.80255596]
[1731826586759,38.80255596,238.2,238.1,0.25098]
[1731826587274,38.80255596,238.2,238.12,0.25098]
[1731826587984,38.80255596,238.15,238.06,0.25098]
[1731826588673,38.80255596,238.11,238.01,38.80255596]
[1731826589077,38.80255596,238.13,238.03,38.80255596]
[1731826590388,43.00205596,238.13,238.04,0.25098]
[1731826590763,43.00205596,238.13,238.02,0.25098]
[1731826591287,23.776884,238.16,238.02,0.25098]
[1731826591498,38.80255596,238.13,238.02,0.25098]
[1731826592679,38.80255596,238.11,238.02,0.25098]
[1731826593570,38.80255596,238.13,238.03,38.80255596]
[1731826593781,38.80255596,238.13,238.04,0.25098]
[1731826594296,38.80255596,238.11,238.04,0.25098]
[1731826594463,38.80255596,238.05,237.98,12.9316]
[1731826594663,38.80255596,238.05,237.95,38.80255596]
[1731826594864,38.80255596,238.05,237.94,0.1]
[1731826594865,38.80255596,238.07,237.97,38.80255596]
[1731826595162,38.80255596,238.11,238.01,38.80255596]
[1731826595486,4.199,238.15,237.93,12.1279]
[1731826595487,38.80255596,238.14,238.04,38.80255596]
[1731826595684,4.1993,238.13,238.04,38.80255596]
[1731826596069,4.1993,238.13,238.05,0.25098]
[1731826597368,4.1993,238.13,237.93,12.1279]
[1731826597369,38.80255596,238.08,237.93,12.1279]
[1731826597586,38.80255596,238.06,237.97,38.80255596]
[1731826597973,43.00325596,238.06,237.97,38.80255596]
[1731826598283,43.00325596,238.06,237.93,12.1279]
[1731826598284,4.1998,238.11,238.02,38.80255596]
[1731826599487,38.80255596,238.05,237.96,0.25098]
[1731826599868,38.80255596,238.05,237.95,38.80255596]
[1731826600175,38.80255596,238.07,237.97,38.80255596]
[1731826600573,4.2006,238.06,237.97,38.80255596]
[1731826601266,4.2006,238.06,237.98,0.25098]
[1731826601683,4.2003,238.08,237.98,0.25098]
[1731826601882,4.2003,238.08,238.0,0.25098]
[1731826602385,38.80255596,238.07,238.0,0.25098]
[1731826602585,38.80255596,238.07,237.98,0.25098]
[1731826602788,4.2006,238.06,237.98,0.25098]
[1731826604480,38.80255596,238.13,238.03,38.80255596]
[1731826604786,4.199,238.15,238.08,0.25098]
[1731826605096,38.80255596,238.2,238.1,0.25098]
[1731826605388,38.80255596,238.2,238.12,0.25098]
[1731826605872,38.80255596,238.2,238.1,0.25098]
[1731826606073,38.80255596,238.17,238.06,0.25098]
[1731826606285,38.80255596,238.2,238.09,38.80255596]
[1731826606490,38.80255596,238.2,238.06,24.027864]
[1731826606491,38.80255596,238.22,238.13,38.80255596]
[1731826606667,38.80255596,238.24,238.14,0.25098]
[1731826607792,38.80255596,238.32,238.21,38.80255596]
[1731826608087,0.101091,238.34,238.25,38.80255596]
[1731826608294,0.101091,238.34,238.28,0.25098]
[1731826608970,0.101091,238.34,238.28,4.44758]
[1731826609370,0.101091,238.34,238.3,0.25098]
[1731826609981,0.101091,238.34,238.32,0.25098]
[1731826610785,0.101091,238.34,238.32,4.44688]
[1731826611492,0.101091,238.34,238.32,0.25098]
[1731826613701,0.101091,238.34,238.25,38.80255596]
[1731826613892,38.80255596,238.33,238.24,4.1973]
[1731826614272,4.296891,238.34,238.25,38.80255596]
[1731826614476,0.101091,238.34,238.25,38.80255596]
[1731826615093,0.101091,238.34,238.3,0.25098]
[1731826615287,0.101091,238.34,238.32,0.25098]
[1731826615888,0.101091,238.34,238.3,0.25098]
[1731826616190,0.101091,238.34,238.28,0.25098]
[1731826616880,0.101091,238.34,238.33,0.25098]
[1731826617080,0.101091,238.34,238.33,4.44678]
[1731826617283,0.101091,238.34,238.33,0.25098]
[1731826617796,42.59834696,238.4,238.33,0.25098]
[1731826617996,38.80255596,238.38,238.29,0.12549]
[1731826618187,4.1947,238.4,238.26,14.6893]
[1731826618188,38.80255596,238.34,238.26,14.6893]
[1731826618492,38.80255596,238.32,238.23,4.1974]
[1731826619270,38.80255596,238.38,238.28,38.80255596]
[1731826619703,23.776884,238.39,238.31,0.25098]
[1731826620272,31.2923,238.68,238.56,147.2213]
[1731826620498,0.1,238.75,238.61,38.80255596]
[1731826620499,40.18255596,238.75,238.61,38.80255596]
[1731826621099,4.1888,238.73,238.61,42.99345596]
[1731826621281,1.38,238.75,238.61,42.99345596]
[1731826621484,1.38,238.75,238.61,43.09345596]
[1731826621691,40.18255596,238.75,238.61,42.99345596]
[1731826622586,40.18255596,238.75,238.61,43.24443596]
[1731826623276,4.1886,238.74,238.61,43.24443596]
[1731826623898,38.80255596,238.7,238.61,39.05353596]
[1731826624079,38.80255596,238.74,238.61,39.05353596]
[1731826624398,4.1888,238.73,238.61,39.05353596]
[1731826625483,0.1,238.79,238.61,39.05353596]
[1731826625484,38.80255596,238.72,238.61,39.05353596]
[1731826625684,42.99155596,238.72,238.61,38.80255596]
[1731826625990,4.1893,238.7,238.61,38.80255596]
[1731826626381,38.80255596,238.7,238.59,38.80255596]
[1731826626581,38.80255596,238.68,238.59,38.80255596]
[1731826627190,24.3218162,238.62,238.55,38.80255596]
[1731826627395,23.776884,238.61,238.53,38.80255596]
[1731826627610,23.776884,238.61,238.49,38.80255596]
[1731826627611,42.99365596,238.6,238.49,38.80255596]
[1731826627791,38.80255596,238.56,238.47,38.80255596]
[1731826627990,23.776884,238.55,238.47,38.80255596]
[1731826628198,23.776884,238.55,238.44,16.7228]
[1731826628495,23.776884,238.55,238.47,38.80255596]
[1731826628899,23.776884,238.59,238.51,38.80255596]
[1731826629284,23.776884,238.59,238.49,38.80255596]